[Event "Czech Open-GM 2022"]
[Site "Pardubice"]
[Date "2022.07.27"]
[Round "6.9"]
[White "Tahay, Alexis"]
[Black "Dixit, Nikhil"]
[Result "1-0"]
[ECO "C11"]
[WhiteElo "2393"]
[BlackElo "2325"]
[Annotator "TA"]
[PlyCount "85"]
[EventDate "2022.07.22"]
[EventType "swiss"]
[EventCountry "CZE"]
[SourceTitle "playchess.com"]
[Source "ChessBase"]
[SourceQuality "1"]
[TimeControl "40/5400+30:1800+30"]

{[%evp 13,85,0,24,28,32,9,74,38,35,60,72,12,16,0,55,38,37,33,198,204,243,112,251,130,143,58,150,118,325,325,504,487,418,428,498,490,408,111,160,66,52,47,335,380,370,195,127,0,0,0,0,0,0,0,56,48,387,387,935,935,879,875,862,808,786,583,29995,29996,29996,29997,29997,29998,29998,29999]} 1. e4 {[%emt 0:00:07][%cal Be2e4,Be4e5][%mdl 32]} e6 {[%emt 0:02:32]} 2. d4 {[%emt 0:00:09]} d5 {[%emt 0:00:24]} 3. Nc3 {[%emt 0:00:07]} Nf6 {[%emt 0:00:06]} 4. e5 {[%emt 0:00:03]} Nfd7 {[%emt 0:00:04]} 5. f4 {[%emt 0:00:06]} c5 {[%emt 0:00:04]} 6. Nf3 {[%emt 0:00:03]} Nc6 {[%emt 0:00:05]} 7. Be3 {[%emt 0:00:04]} a6 {[%emt 0:01:35]} 8. Ne2 {[%emt 0:01:17] C11: French: Classical System: 4 e5 and 4 Bg5 dxe4.} b5 {[%emt 0:03:16]} 9. g3 {[%emt 0:05:28] [#]} f5 $146 {[%emt 0:11:05]} (9... b4 $11 {remains equal.}) ({Predecessor:} 9... Qa5+ 10. Kf2 Be7 11. h4 O-O 12. c3 b4 13. Qc2 bxc3 14. bxc3 f5 15. Nc1 Rb8 {½-½ (40) Bacrot,E (2678)-McShane,L (2672) Batumi 2018}) 10. Bh3 {[%emt 0:03:31] White is better.} (10. exf6 $5 Qxf6 11. Bg2 $14) 10... cxd4 {[%emt 0:06:57]} 11. Nexd4 {[%emt 0:02:02]} Nxd4 {[%emt 0:00:09]} 12. Bxd4 {[%emt 0:02:06]} (12. Nxd4 $16 Nc5 13. Bg2) 12... Nc5 {[%emt 0:04:37]} 13. Qe2 {[%emt 0:07:35]} Bd7 {[%emt 0:05:43]} (13... Qa5+ $11 14. Nd2 Ne4) 14. O-O-O {[%emt 0:04:49]} Qa5 {[%emt 0:04:11]} 15. Kb1 {[%emt 0:01:23] And now g4 would win.} b4 $2 {[%emt 0:00:50]} (15... h5 $1 $14) 16. g4 $1 $18 {[%emt 0:06:09]} Ne4 {[%emt 0:19:17]} 17. Qe3 {[%emt 0:03:12]} (17. gxf5 $18 {has better winning chances.} Nc3+ 18. Bxc3 (18. bxc3 bxc3 19. Nd2 Qa3 $11) 18... bxc3 19. Nd4 (19. fxe6 Qb4 20. exd7+ Kd8)) 17... Rb8 {[%emt 0:02:33]} (17... fxg4 $16 18. Bxg4 Rc8) 18. Nd2 {[%emt 0:05:16]} (18. gxf5 $18 exf5 19. Rhe1 Nc3+ 20. Bxc3 (20. bxc3 $2 bxc3+ 21. Ka1 Rb2 22. Bxc3 Qxa2#) 20... bxc3 21. b3) 18... Rc8 {[%emt 0:06:45]} 19. Nxe4 {[%emt 0:05:53]} (19. gxf5 $16 exf5 20. Bf1) 19... dxe4 {[%emt 0:01:14]} ({Better is} 19... fxe4 $14 20. f5 Bc5) 20. Rd2 {[%emt 0:01:12] Black must now prevent Rhd1.} Qb5 $2 {[%emt 0:14:46]} (20... h5 $16) 21. Rhd1 {[%emt 0:04:34]} Rc7 {[%emt 0:00:32]} (21... Rc3 {was called for.}) 22. b3 {[%emt 0:07:00]} (22. Bb6 Rb7 23. Qg1 (23. gxf5 exf5 24. Bf1 Qc6 $18) 23... fxg4 $18) 22... Qc6 {[%emt 0:01:09]} 23. Bf1 {[%emt 0:02:36]} (23. Bb6 Rb7 24. Bf1 (24. gxf5 exf5 25. Bf1 Be6 $16) 24... Qxb6 $18) 23... Be7 {[%emt 0:01:21]} 24. gxf5 {[%emt 0:07:37]} (24. Bb6 Rb7 25. gxf5 exf5 $18) 24... exf5 {[%emt 0:00:14]} 25. Qg3 $2 {[%emt 0:00:59]} (25. Bb6 $18 Rb7 26. Bc4 $1) 25... Qg6 {[%emt 0:01:54]} (25... Rg8 $142) 26. Qxg6+ {[%emt 0:01:02]} (26. Qf2 $16 {aiming for Bb6.} Bb5 27. Bb6) 26... hxg6 $14 {[%emt 0:00:06]} 27. Bxa6 {[%emt 0:00:04] Hoping for Bb6.} Rh4 $2 {[%emt 0:05:10][%mdl 8192]} (27... Rh7 $14) 28. Bb6 $18 {[%emt 0:03:52]} Rc6 {[%emt 0:00:28]} 29. Rxd7 {[%emt 0:00:43]} (29. Bd8 $142 Bxd8 30. Rxd7) 29... Rxb6 {[%emt 0:00:19] [#]} 30. Bc4 {[%emt 0:02:21] 0x0.00168730a2b3dp-1022s more active pieces.} ({Only move:} 30. Ra7 $1 $16 {[%cal Ra7a8]} Rb8 31. Rd2) 30... Rxh2 $11 {[%emt 0:02:15]} 31. Ra7 {[%emt 0:00:43] Threatening mate with Ra8+.} Rb8 {[%emt 0:00:20] Inhibits Ra8.} 32. Rdd7 {[%emt 0:00:26]} Bc5 {[%emt 0:01:27]} 33. Rac7 $36 {[%emt 0:00:28][%mdl 2048] White fights for an advantage.} Rh1+ {[%emt 0:01:28]} (33... Bb6 $11 34. Re7+ Kf8 35. Rf7+ Kg8) 34. Kb2 $14 {[%emt 0:00:01] Threatens to win with Bf7+.} Be3 $2 {[%emt 0:00:24][%mdl 8192]} ({Black should try} 34... Bb6 $14) 35. a4 $18 {[%emt 0:01:56]} ({But not} 35. Re7+ $2 Kf8 36. Rf7+ Kg8 37. Rfd7+ (37. Rxg7+ $2 Kh8 $19) 37... Kh8 $19) 35... Bxf4 $2 {[%emt 0:02:32]} (35... Bb6 36. e6 (36. Rxg7 Bd4+ 37. c3 Bxc3+ 38. Kc2 Rh2+ 39. Kc1 Rh1+ 40. Kc2 Rh2+ 41. Kc1 Rh1+ 42. Kc2 $11) 36... Bxc7 37. Rxc7 Rd1 38. Rxg7 Kf8 39. Rf7+ Ke8) 36. Re7+ {[%emt 0:00:51]} Kf8 {[%emt 0:00:11]} 37. Rf7+ {[%emt 0:00:05]} Ke8 {[%emt 0:00:27]} 38. Ka2 {[%emt 0:03:15]} e3 {[%emt 0:01:23]} 39. Rxg7 {[%emt 0:01:59][%cal Rg7g8]} Rh8 {[%emt 0:01:31]} 40. Bb5+ {[%emt 0:00:05] White mates.} Kd8 {[%emt 0:00:14]} 41. Rgd7+ {[%emt 0:30:05]} Ke8 {[%emt 0:30:07]} 42. Rh7+ {[%emt 0:00:04]} Kd8 {[%emt 0:00:28]} 43. Rcd7+ {[%emt 0:00:05] Weighted Error Value: White=0.49/Black=0.94} 1-0

[Event "Czech Open-GM 2022"]
[Site "Pardubice"]
[Date "2022.07.27"]
[Round "6.10"]
[White "Sorm, Daniel"]
[Black "Bronstein, Or"]
[Result "0-1"]
[ECO "D35"]
[WhiteElo "2308"]
[BlackElo "2476"]
[Annotator "TA"]
[PlyCount "70"]
[EventDate "2022.07.22"]
[EventType "swiss"]
[EventCountry "CZE"]
[SourceTitle "playchess.com"]
[Source "ChessBase"]
[SourceQuality "1"]
[TimeControl "40/5400+30:1800+30"]

{[%evp 15,70,12,17,16,20,16,16,12,4,0,6,0,22,0,8,0,28,0,8,8,16,-10,-16,-16,-5,-15,3,-50,-10,-94,-37,-46,-37,-94,-82,-97,-89,-87,0,-179,-193,-179,-81,-68,-70,-66,-65,-29,27,31,111,-1818,-1708,-1667,-1635,-1158,-749]} 1. d4 {[%emt 0:00:01]} Nf6 {[%emt 0:00:52]} 2. c4 {[%emt 0:00:23]} e6 {[%emt 0:00:07]} 3. Nc3 {[%emt 0:00:07]} d5 {[%emt 0:00:16]} 4. cxd5 {[%emt 0:00:15]} exd5 {[%emt 0:00:02]} 5. Bg5 {[%emt 0:00:20]} c6 {[%emt 0:00:03]} 6. e3 {[%emt 0:01:00]} h6 {[%emt 0:00:07]} 7. Bh4 {[%emt 0:00:00]} Be7 {[%emt 0:00:07]} 8. Bd3 {[%emt 0:00:27]} O-O {[%emt 0:00:09]} 9. Nge2 {[%emt 0:03:18] D35: Queen's Gambit Declined: Exchange Variation.} Re8 {[%emt 0:02:05]} 10. O-O {[%emt 0:01:51]} Nbd7 {[%emt 0:00:06]} 11. f3 {[%emt 0:01:14] The position is equal.} b5 {[%emt 0:01:04]} 12. a3 {[%emt 0:09:18]} Nb6 {[%emt 0:08:00] [#]} 13. Bf2 $146 {[%emt 0:13:45]} ({Predecessor:} 13. b3 a5 14. e4 a4 15. b4 Bb7 16. e5 Nh7 17. Bf2 Nf8 18. f4 f6 19. Ng3 {1-0 (25) Jenner,E (1760)-Boschmann,W (1519) Ditzingen 2015}) 13... Bd7 {[%emt 0:06:10]} 14. Kh1 {[%emt 0:11:21]} Nc4 {[%emt 0:14:53]} 15. Qc1 {[%emt 0:00:17]} c5 {[%emt 0:03:29]} 16. b3 {[%emt 0:05:26]} Na5 {[%emt 0:05:54]} 17. Bc2 {[%emt 0:01:25] And now dxc5 would win.} cxd4 {[%emt 0:11:06]} 18. exd4 {[%emt 0:01:14]} Rc8 {[%emt 0:00:44]} 19. Qd1 {[%emt 0:04:22]} Nb7 {[%emt 0:11:16]} 20. Qd3 {[%emt 0:03:37][%cal Oc3d5]} Nd6 {[%emt 0:00:02]} 21. g4 {[%emt 0:01:40]} ({Better is} 21. Rfc1 $11) 21... Nde4 {[%emt 0:14:03]} 22. Be1 {[%emt 0:00:51] [#]} ({Don't play} 22. fxe4 dxe4 23. Qe3 (23. Nxe4 $2 Nxe4 24. Kg1 Bd6 $19) 23... Bxg4 24. Bxe4 Bxe2 25. Nxe2 Bd6 $14) (22. Bh4 $11 {keeps the balance.}) 22... Nxc3 {[%emt 0:01:01] Black is more active.} (22... Bd6 $1 $17) 23. Nxc3 $15 {[%emt 0:00:36]} Qc7 {[%emt 0:02:08]} 24. b4 {[%emt 0:11:53]} (24. Ra2 $15 Qc6 25. Bb1) 24... Bd6 $17 {[%emt 0:03:39][%cal Oe8e1] Threatens to win with ...Rxe1!} 25. Bd2 {[%emt 0:02:39]} Bxh2 {[%emt 0:02:40] White must now prevent ...Qg3.} 26. f4 {[%emt 0:06:40]} Bxg4 {[%emt 0:00:02]} 27. Bd1 $2 {[%emt 0:13:21]} (27. Rac1 $11) 27... Bxd1 $19 {[%emt 0:01:37]} 28. Raxd1 {[%emt 0:02:18] [#]} Ng4 {[%emt 0:00:21]} (28... Qd7 $1 $19 {[%cal Rd7g4] and Black stays clearly on top. Strongly threatening ...Qg4!} 29. Rde1 Ng4) 29. Qf5 $17 {[%emt 0:01:48]} h5 {[%emt 0:00:01]} (29... Ne3 30. Bxe3 Qxc3 31. Rc1 Qxe3 32. Rxc8 $11) 30. Qxh5 {[%emt 0:01:45]} Ne3 $36 {[%emt 0:03:55][%mdl 2048] Black is pushing. Dancing on a razor blade.} 31. Bxe3 {[%emt 0:01:47]} Qxc3 {[%emt 0:00:01]} ({Black should try} 31... Rxe3 32. Nxd5 {[#]} Qc6 $1) 32. Bd2 $11 {[%emt 0:00:31]} Qd3 {[%emt 0:00:45]} 33. Qxh2 $2 {[%emt 0:00:54][%mdl 8192]} (33. Rf3 $16 Qe4 34. Re1) 33... Re2 $19 {[%emt 0:00:17] Black is clearly winning.} 34. Rf2 {[%emt 0:00:03]} Rxf2 {[%emt 0:00:07][%mdl 64] Deflection} 35. Qxf2 {[%emt 0:00:02]} Qh3+ {[%emt 0:00:06] Weighted Error Value: White=0.40/Black=0.23 (precise)} 0-1

[Event "Czech Open-GM 2022"]
[Site "Pardubice"]
[Date "2022.07.27"]
[Round "6.11"]
[White "Haring, Filip"]
[Black "Mladek, Richard"]
[Result "1/2-1/2"]
[ECO "A08"]
[WhiteElo "2451"]
[BlackElo "2330"]
[Annotator "TA"]
[PlyCount "49"]
[EventDate "2022.07.22"]
[EventType "swiss"]
[EventCountry "CZE"]
[SourceTitle "playchess.com"]
[Source "ChessBase"]
[SourceQuality "1"]
[TimeControl "40/5400+30:1800+30"]

{[%evp 15,49,7,7,9,7,0,6,12,10,21,19,15,8,10,20,16,14,0,0,0,0,0,0,-17,-18,-11,-18,-16,-8,-14,-12,-9,-6,-12,-2,-8]} 1. Nf3 {[%emt 0:00:04]} d5 {[%emt 0:00:07][%cal Bd7d5,Bd5c4][%mdl 32]} 2. g3 {[%emt 0:00:20]} c5 {[%emt 0:00:05]} 3. Bg2 {[%emt 0:00:24]} Nc6 {[%emt 0:00:01]} 4. d4 {[%emt 0:00:44]} Nf6 {[%emt 0:00:06]} 5. O-O {[%emt 0:00:36]} e6 {[%emt 0:00:01]} 6. c4 {[%emt 0:03:08]} dxc4 {[%emt 0:01:26]} 7. Qa4 {[%emt 0:04:42]} Bd7 {[%emt 0:00:09]} 8. dxc5 {[%emt 0:02:12]} Na5 {[%emt 0:02:55] The position is equal.} 9. Qa3 {[%emt 0:13:54] E04: Open Catalan: 5 Nf3.} b6 {[%emt 0:03:06]} 10. b4 $1 {[%emt 0:16:26]} cxb3 $1 {[%emt 0:00:20]} 11. axb3 {[%emt 0:00:07][%cal Ba2b3,Bb3b4][%mdl 32]} Bxc5 {[%emt 0:01:03]} 12. b4 {[%emt 0:00:04]} Be7 {[%emt 0:00:44]} (12... Nc4 $2 13. Qb3 $18) 13. Ne5 {[%emt 0:03:52] [#] Hoping for Qb2.} Rc8 {[%emt 0:01:37]} 14. Rd1 {[%emt 0:05:33]} Nc4 {[%emt 0:03:17]} 15. Nxc4 {[%emt 0:00:29]} Rxc4 {[%emt 0:00:03]} 16. Qxa7 {[%emt 0:00:45]} O-O {[%emt 0:05:48]} 17. Bg5 {[%emt 0:08:56] [#]} h6 $146 {[%emt 0:38:09]} ({Predecessor:} 17... Nd5 18. Bxe7 Qxe7 19. Bxd5 exd5 20. Na3 Rxb4 21. Nc2 Rb2 22. Nd4 Qd6 23. Rab1 Rxb1 24. Rxb1 {0-1 (37) Hulak,K (2470)-Afifi,A Budva 1981}) 18. Bxf6 {[%emt 0:00:07]} Bxf6 {[%emt 0:00:01]} 19. Ra2 {[%emt 0:03:05]} Rc7 {[%emt 0:07:57]} (19... Rxb4 $2 20. Rad2 $18) 20. Qxb6 {[%emt 0:07:52] [#]} Rc1 $1 {[%emt 0:03:56]} 21. Qd6 {[%emt 0:00:05]} Be7 {[%emt 0:04:39] A strong pair of Bishops.} 22. Qd2 {[%emt 0:00:54]} Rxd1+ {[%emt 0:01:59]} 23. Qxd1 {[%emt 0:00:06] Black must now prevent Rd2.} Bxb4 {[%emt 0:00:19]} 24. Qd4 {[%emt 0:07:21]} Be7 {[%emt 0:03:48]} 25. Ra7 {[%emt 0:05:05] An even fight not without its subleties.  Weighted Error Value: White=0.04 (flawless) /Black=0.02 (flawless)} 1/2-1/2

[Event "Czech Open-GM 2022"]
[Site "Pardubice"]
[Date "2022.07.27"]
[Round "6.12"]
[White "Pantzar, Milton"]
[Black "Hansch, Karsten"]
[Result "1-0"]
[ECO "D30"]
[WhiteElo "2447"]
[BlackElo "2320"]
[Annotator "TA"]
[PlyCount "88"]
[EventDate "2022.07.22"]
[EventType "swiss"]
[EventCountry "CZE"]
[SourceTitle "playchess.com"]
[Source "ChessBase"]
[SourceQuality "1"]
[TimeControl "40/5400+30:1800+30"]

{[%evp 17,88,14,14,-8,8,5,7,6,56,49,74,64,90,83,85,68,88,86,74,56,120,62,112,102,118,121,141,170,167,152,410,285,277,281,261,241,284,205,266,250,342,342,363,358,397,397,397,397,402,372,379,371,364,347,482,472,802,784,666,582,1216,1208,1186,1175,1144,1137,1049,1031,1163,1143,1069,1051,29988]} 1. d4 {[%emt 0:00:06]} d5 {[%emt 0:00:08]} 2. c4 {[%emt 0:00:24]} e6 {[%emt 0:00:12]} 3. Nf3 {[%emt 0:00:31]} Nf6 {[%emt 0:00:10]} 4. g3 {[%emt 0:00:08]} Bb4+ {[%emt 0:00:22]} 5. Bd2 {[%emt 0:00:36]} Be7 {[%emt 0:00:08]} 6. Bg2 {[%emt 0:00:29]} O-O {[%emt 0:00:26]} 7. O-O {[%emt 0:01:24]} Nbd7 {[%emt 0:00:16]} 8. Qc2 {[%emt 0:00:47]} c6 {[%emt 0:00:15]} 9. Bf4 $1 {[%emt 0:06:54] 9.Bf4 scores better than 9.Rd1.} dxc4 {[%emt 0:02:38]} 10. Nbd2 {[%emt 0:06:41] E08: Closed Catalan: Main Line: 7 Qc2.} Nd5 {[%emt 0:03:08]} 11. Nxc4 {[%emt 0:01:32]} Nxf4 {[%emt 0:01:18]} 12. gxf4 {[%emt 0:00:08] [#] The position is equal.} c5 $146 {[%emt 0:01:01]} (12... f6 $11) ({Predecessor:} 12... Nb6 13. Nce5 f6 14. Nd3 Bd6 15. e3 Nd5 16. Rac1 Bd7 17. Nc5 Qc7 18. Qb3 Rab8 19. Ne1 Kh8 {1-0 (71) Hegener,T (1682)-Becker,J (1650) Playchess.com INT 2020}) 13. Rac1 {[%emt 0:11:29]} Qc7 {[%emt 0:08:02]} 14. e3 {[%emt 0:06:29]} Rb8 {[%emt 0:07:13]} 15. Nce5 {[%emt 0:05:21]} Nxe5 {[%emt 0:07:54]} 16. Nxe5 {[%emt 0:01:07]} (16. dxe5 b5 $11) 16... f6 {[%emt 0:02:44]} 17. Nd3 {[%emt 0:04:50] 0x0.001e3b1a1b19dp-1022s more active pieces. The black rooks are badly placed.} b6 {[%emt 0:01:34]} 18. Rfd1 {[%emt 0:12:14]} Ba6 {[%emt 0:07:37] [#]} (18... Bb7 $14) 19. dxc5 {[%emt 0:04:13]} (19. Nb4 $1 $16 {[%cal Rb4a6]} Bb7 20. Qb3) 19... Bxd3 {[%emt 0:00:41]} (19... bxc5 $14 20. Nxc5 Bxc5 21. Qxc5 Qxc5 22. Rxc5 Rxb2) 20. Rxd3 $16 {[%emt 0:02:10] aiming for Qc4.} bxc5 {[%emt 0:01:44]} 21. Qc4 {[%emt 0:07:43]} Rb6 {[%emt 0:08:40]} 22. b4 {[%emt 0:04:50][%cal Rb4c5]} Rc8 {[%emt 0:02:53]} 23. b5 {[%emt 0:03:46]} f5 $2 {[%emt 0:08:23]} (23... Rd6 $16) 24. Bc6 {[%emt 0:01:48]} Rxc6 {[%emt 0:01:47]} 25. bxc6 {[%emt 0:00:07]} Qxc6 {[%emt 0:00:04]} 26. Ra3 {[%emt 0:01:06]} Rd8 {[%emt 0:06:43]} 27. e4 {[%emt 0:05:07]} Kf8 {[%emt 0:07:49]} 28. Ra6 {[%emt 0:01:55]} ({Much less strong is} 28. Rxa7 $6 fxe4 29. Qe2 (29. Qc3 Bf6 $14) 29... Rd4 $18) (28. exf5 $6 exf5 29. Rxa7 Qg6+ 30. Kf1 Qc6 $16) 28... Qxe4 {[%emt 0:00:17]} 29. Qxe4 {[%emt 0:00:12]} fxe4 {[%emt 0:00:12]} 30. Rxa7 $18 {[%emt 0:02:58][%mdl 4096] Endgame KRR-KRB} Bf6 {[%emt 0:01:56]} 31. a4 {[%emt 0:02:49][%cal Ba2a4,Ba4a5,Ba5a6,Ba6a7][%mdl 32]} Bd4 {[%emt 0:00:07]} 32. Kg2 {[%emt 0:01:50]} Rb8 {[%emt 0:06:45]} 33. Rc2 {[%emt 0:00:53]} Rb4 {[%emt 0:00:09]} 34. a5 {[%emt 0:01:48] And now Ra2 would win.} Ra4 {[%emt 0:00:25] Against Ra2} 35. Rd2 {[%emt 0:01:52]} Ke8 {[%emt 0:00:58]} 36. Rd1 {[%emt 0:00:51] White is clearly winning.} Kd8 {[%emt 0:00:04]} (36... Rb4 $142 37. a6 Rb6) 37. Rb1 {[%emt 0:00:36][%cal Rb1b8]} Kc8 {[%emt 0:00:04] Inhibits Rb8+.} 38. a6 {[%emt 0:00:42]} c4 {[%emt 0:02:16]} 39. Ra8+ {[%emt 0:00:16]} Kc7 {[%emt 0:00:04]} 40. Rb7+ {[%emt 0:00:38]} Kc6 {[%emt 0:00:27]} 41. Rc8+ {[%emt 0:02:46]} Kd6 {[%emt 0:00:00]} 42. Rd8+ {[%emt 0:00:13]} Kc5 {[%emt 0:00:00]} 43. a7 {[%emt 0:01:05] Rc8+ is the strong threat.} Kc6 {[%emt 0:00:00] [#]} 44. Rb4 $3 {[%emt 0:00:33][%mdl 512] Intending Rxc4+ and mate.} e3 {Black got outplayed after the opening.  Weighted Error Value: White=0.17 (very precise) /Black=0.38} (44... Rxa7 45. Rxd4) 1-0

[Event "Czech Open-GM 2022"]
[Site "Pardubice"]
[Date "2022.07.27"]
[Round "6.13"]
[White "Strebkovs, Andrejs"]
[Black "Jurcik, Marian"]
[Result "1/2-1/2"]
[ECO "B15"]
[WhiteElo "2283"]
[BlackElo "2409"]
[Annotator "TA"]
[PlyCount "52"]
[EventDate "2022.07.22"]
[EventType "swiss"]
[EventCountry "CZE"]
[SourceTitle "playchess.com"]
[Source "ChessBase"]
[SourceQuality "1"]
[TimeControl "40/5400+30:1800+30"]

{[%evp 16,52,48,41,71,4,23,-3,33,34,33,16,14,15,9,-21,0,-14,-13,-10,0,-33,-33,-21,-26,-29,-11,-12,0,0,0,0,56,54,43,54,56,66,66]} 1. e4 {[%emt 0:00:05]} c6 {[%emt 0:07:55]} 2. d4 {[%emt 0:05:44]} d5 {[%emt 0:00:09]} 3. Nd2 {[%emt 0:01:58]} dxe4 {[%emt 0:00:41]} 4. Nxe4 {[%emt 0:00:04]} Nf6 {[%emt 0:00:17]} 5. Nxf6+ {[%emt 0:01:40]} exf6 {[%emt 0:00:14]} 6. c3 {[%emt 0:04:43]} Bd6 {[%emt 0:01:09]} 7. Bd3 {[%emt 0:00:10]} Be6 {[%emt 0:08:50]} 8. Ne2 {[%emt 0:03:33]} Qc7 {[%emt 0:01:07]} 9. Qc2 {[%emt 0:04:53]} Nd7 {[%emt 0:03:50] B15: Caro-Kann: 3 Nc3: 3...g6 and 3...dxe4 4 Nxe4 Nf6 5 Nxf6+ exf6.} 10. g3 {[%emt 0:07:35]} (10. c4 $16) 10... O-O-O 11. Bf4 Bd5 {[%emt 0:06:00] [#] The position is equal.} 12. O-O $146 {[%emt 0:07:00]} ({Predecessor:} 12. Bxd6 Qxd6 13. Rg1 Nb6 14. a3 Qc7 15. O-O-O h6 16. Nf4 c5 17. Nxd5 Rxd5 18. Be4 {1-0 (41) Eggleston,D (2140)-Heaton,R (2112) Ampleforth 2003}) 12... h5 {[%emt 0:04:11]} 13. Bxd6 {[%emt 0:03:27]} Qxd6 {[%emt 0:00:03]} 14. Nf4 {[%emt 0:07:18]} h4 {[%emt 0:03:17]} 15. Be4 hxg3 {[%emt 0:07:49]} 16. fxg3 {[%emt 0:01:54]} Bxe4 {[%emt 0:01:36]} (16... Bc4 $5 {[%cal Rc4f1]}) 17. Qxe4 {[%emt 0:02:40]} Rde8 18. Qf3 f5 {[%emt 0:00:54]} 19. Rae1 {[%emt 0:02:28]} g6 {[%emt 0:01:20]} 20. Nd3 {[%emt 0:03:16]} Re6 {[%emt 0:13:31]} 21. Re2 {[%emt 0:05:26]} Nf6 {[%emt 0:01:24]} 22. Ne5 {[%emt 0:02:07]} Qe7 {[%emt 0:07:20]} 23. Rfe1 {[%emt 0:00:47][%cal Oe5g6] Nxg6! is the strong threat.} Ne4 {[%emt 0:01:12] [#]} (23... Qc7 $1 $11) 24. Nxf7 $1 $14 {[%emt 0:07:15] White is slightly better.} Qxf7 {[%emt 0:06:37]} 25. Rxe4 {[%emt 0:00:05]} Rxe4 {[%emt 0:00:09]} 26. Rxe4 {[%emt 0:00:04][%mdl 64] Pin} Qxa2 {[%emt 0:00:29] Weighted Error Value: White=0.14 (very precise) /Black=0.15 (very precise)} 1/2-1/2